bitfinex/quotes_BTCUSD_20250205
["timestamp","ask_amount","ask_price","bid_price","bid_amount"]
[1738775367505,0.15298326,98208.0,98207.0,0.00844781]
[1738775367710,0.00024626,98208.0,98207.0,0.00844781]
[1738775367937,0.00024626,98208.0,98207.0,0.02717321]
[1738775368643,0.15298326,98208.0,98207.0,0.02717321]
[1738775369003,0.15298326,98208.0,98207.0,0.0187254]
[1738775369624,0.15298326,98208.0,98207.0,0.02717321]
[1738775369851,0.152741,98205.0,98204.0,0.00844781]
[1738775370205,0.152743,98204.0,98203.0,0.0187254]
[1738775370437,0.199643,98204.0,98203.0,0.0187254]
[1738775371144,0.152765,98190.0,98189.0,0.00844781]
[1738775371619,0.0469,98204.0,98190.0,0.00844781]
[1738775371620,0.203661,98202.0,98190.0,0.00844781]
[1738775371824,0.152752,98198.0,98197.0,0.00844781]
[1738775372767,0.203667,98200.0,98190.0,0.11095146]
[1738775372972,0.152763,98191.0,98190.0,0.11095146]
[1738775373141,0.152763,98192.0,98190.0,0.11095146]
[1738775373344,0.152761,98192.0,98191.0,0.00844781]
[1738775373546,0.152761,98192.0,98184.0,0.152773]
[1738775373547,0.05831197,98204.0,98193.0,0.00844781]
[1738775373813,0.152752,98198.0,98197.0,0.00844781]
[1738775374803,0.05831197,98204.0,98182.0,1.02127312]
[1738775374804,0.05831197,98204.0,98190.0,0.00844781]
[1738775375006,0.13988274,98200.0,98190.0,0.00844781]
[1738775375206,0.152763,98191.0,98190.0,0.00844781]
[1738775375605,0.152758,98195.0,98194.0,0.00844781]
[1738775375807,0.152754,98197.0,98196.0,0.00844781]
[1738775376231,0.152754,98197.0,98190.0,0.00844781]
[1738775376439,0.152761,98192.0,98191.0,0.00844781]
[1738775376632,0.20368,98194.0,98190.0,0.00844781]
[1738775376633,0.152763,98191.0,98190.0,0.00844781]
[1738775379088,0.152765,98190.0,98189.0,0.00844781]
[1738775380028,0.0470067,98204.0,98192.0,0.00844781]
[1738775380231,0.152752,98198.0,98197.0,0.00844781]
[1738775381362,0.15700923,98198.0,98197.0,0.00844781]
[1738775381784,0.203678,98195.0,98191.0,0.00844781]
[1738775382076,0.152761,98192.0,98191.0,0.00844781]
[1738775382507,0.20732672,98194.0,98193.0,0.00844781]
[1738775382508,0.152758,98194.0,98193.0,0.00844781]
[1738775384232,0.152763,98191.0,98190.0,0.00844781]
[1738775385029,0.21117,98203.0,98181.0,0.10250365]
[1738775385258,0.20369,98189.0,98186.0,0.00844781]
[1738775385566,0.20369,98189.0,98181.0,0.00844781]
[1738775385567,0.152777,98182.0,98181.0,0.00844781]
[1738775386108,0.2037,98184.0,98168.0,0.2853874]
[1738775386109,0.2037,98184.0,98183.0,0.00844781]
[1738775386320,0.356474,98184.0,98183.0,0.00844781]
[1738775387175,0.203686,98190.0,98185.0,0.00844781]
[1738775387380,0.01122659,98195.0,98193.0,0.00844781]
[1738775387580,0.152746,98202.0,98201.0,0.00844781]
[1738775387752,0.1997507,98204.0,98202.0,0.00844781]
[1738775387953,0.0470067,98204.0,98203.0,0.00844781]
[1738775388160,0.0001067,98204.0,98203.0,0.00844781]
[1738775388429,0.0001067,98204.0,98203.0,0.11095146]
[1738775390191,0.00436737,98204.0,98203.0,0.11095146]
[1738775390395,0.0001067,98204.0,98203.0,0.11095146]
[1738775391129,0.0001067,98204.0,98203.0,0.11117553]
[1738775391820,0.0001067,98204.0,98203.0,0.00867188]
[1738775392383,0.00376031,98204.0,98203.0,0.00867188]
[1738775392628,0.1528497,98204.0,98203.0,0.00867188]
[1738775392813,0.15650281,98204.0,98203.0,0.00867188]
[1738775394027,0.15650281,98204.0,98203.0,0.00022407]
[1738775395163,0.23550281,98204.0,98203.0,0.00022407]
[1738775395424,0.38550281,98204.0,98203.0,0.00022407]
[1738775395836,0.43140281,98204.0,98203.0,0.00022407]
[1738775396134,0.44255761,98204.0,98203.0,0.00022407]
[1738775404013,0.54506126,98204.0,98203.0,0.00022407]
[1738775404213,0.67056491,98204.0,98203.0,0.00022407]
[1738775404407,0.64756491,98204.0,98203.0,0.00022407]
[1738775406872,0.44255761,98204.0,98203.0,0.00022407]
[1738775410629,0.44255761,98204.0,98203.0,0.00022407]
[1738775411173,0.16765761,98204.0,98203.0,0.00867188]
[1738775411527,0.15650281,98204.0,98203.0,0.00867188]
[1738775411861,0.15650281,98204.0,98203.0,0.00022407]
[1738775411990,0.15650281,98204.0,98203.0,0.00867188]
[1738775416305,0.00375981,98204.0,98203.0,0.00867188]
[1738775416526,0.15650281,98204.0,98203.0,0.00867188]
[1738775416903,0.00375981,98204.0,98203.0,0.00867188]
[1738775417106,0.00375981,98204.0,98203.0,1.28519265]
[1738775417604,0.0001067,98204.0,98203.0,1.28519265]
[1738775418306,0.0001067,98204.0,98203.0,0.26391953]
[1738775422408,0.0001067,98204.0,98203.0,0.29514931]
[1738775424642,0.0001067,98204.0,98203.0,0.26391953]
[1738775424865,0.00436489,98204.0,98203.0,0.10272772]
[1738775425064,0.00436489,98204.0,98203.0,0.11117553]
[1738775425233,0.15710789,98204.0,98203.0,0.11117553]
[1738775425437,0.15710789,98204.0,98203.0,0.00867188]
[1738775425775,0.16788759,98204.0,98203.0,0.00867188]
[1738775426574,0.16788759,98204.0,98203.0,0.00022407]
[1738775426764,0.16788759,98204.0,98203.0,0.00867188]
[1738775427151,0.16788759,98204.0,98203.0,0.00022407]
[1738775427369,0.16788759,98204.0,98203.0,0.00867188]
[1738775428004,0.15710789,98204.0,98203.0,0.00867188]
[1738775429277,0.15710789,98204.0,98203.0,0.00022407]
[1738775431965,0.1528497,98204.0,98203.0,0.00022407]
[1738775432149,0.1528497,98204.0,98203.0,0.00867188]
[1738775434245,0.1528497,98204.0,98203.0,0.11117553]
[1738775434246,0.0001067,98204.0,98203.0,0.11117553]
[1738775434449,0.0001067,98204.0,98203.0,0.26391953]
[1738775437064,0.0001067,98204.0,98203.0,0.34181953]
[1738775437913,0.0001067,98204.0,98203.0,0.37303592]
[1738775441475,0.0001067,98204.0,98203.0,0.36458811]
[1738775441839,0.0001067,98204.0,98203.0,0.33337172]
[1738775442020,0.0001067,98204.0,98203.0,0.26391953]
[1738775442432,0.0001067,98204.0,98203.0,0.11117553]
[1738775442660,0.1528497,98204.0,98203.0,0.10272772]
[1738775442835,0.1528497,98204.0,98203.0,0.00867188]
[1738775444313,0.16396834,98204.0,98203.0,0.00022407]
[1738775444538,0.16396834,98204.0,98203.0,0.00867188]
[1738775445654,0.1528497,98204.0,98203.0,0.00867188]
[1738775445864,0.0001067,98204.0,98203.0,0.26391953]
[1738775446055,0.0001067,98204.0,98203.0,0.11117553]
[1738775447028,0.1528497,98204.0,98203.0,0.00867188]
[1738775447231,0.0001067,98204.0,98203.0,0.11117553]
[1738775447754,0.1528497,98204.0,98203.0,0.11117553]
[1738775449109,0.0001067,98204.0,98203.0,0.11117553]
[1738775449520,0.1528497,98204.0,98203.0,0.11117553]
[1738775450548,0.0001067,98204.0,98203.0,0.11117553]
[1738775450699,0.0001067,98204.0,98203.0,0.26391953]
[1738775451909,0.0001067,98204.0,98203.0,0.25547172]
[1738775452114,0.0001067,98204.0,98203.0,0.26391953]
[1738775452538,0.0001067,98204.0,98203.0,0.11117553]
[1738775452720,0.0001067,98204.0,98203.0,0.26391953]
[1738775453138,0.0001067,98204.0,98203.0,0.11117553]
[1738775453336,0.1528497,98204.0,98203.0,0.00867188]
[1738775453715,0.0001067,98204.0,98203.0,0.00867188]
[1738775454135,0.1528497,98204.0,98203.0,0.00867188]
[1738775455659,0.0001067,98204.0,98203.0,0.11117553]
[1738775455862,0.1528497,98204.0,98203.0,0.00022407]
[1738775458507,0.1528497,98204.0,98203.0,0.11117553]
[1738775458918,0.0001067,98204.0,98203.0,0.11117553]
[1738775459389,0.0001067,98204.0,98203.0,0.26391953]
[1738775460975,0.0001067,98204.0,98203.0,0.00867188]
[1738775460976,0.1528497,98204.0,98203.0,0.00867188]
[1738775462227,0.0001067,98204.0,98203.0,0.00867188]
[1738775463217,0.0001067,98204.0,98203.0,0.26391953]
[1738775466431,0.0001067,98204.0,98203.0,0.11117553]
[1738775468258,0.0001067,98204.0,98203.0,0.26391953]
[1738775469769,0.0001067,98204.0,98203.0,0.11117553]
[1738775470784,0.0001067,98204.0,98203.0,0.26391953]
[1738775471424,0.0001067,98204.0,98203.0,0.39201953]
[1738775472137,0.0001067,98204.0,98203.0,0.41082434]
[1738775473442,0.0001067,98204.0,98203.0,0.44215961]
[1738775474708,0.0001067,98204.0,98203.0,0.39275961]
[1738775474866,0.0001067,98204.0,98203.0,0.31405961]
[1738775476890,0.0001067,98204.0,98203.0,0.16131561]
[1738775477165,0.0001067,98204.0,98203.0,0.11117553]
[1738775477371,0.1528497,98204.0,98203.0,0.11117553]
[1738775481363,0.0001067,98204.0,98203.0,0.11117553]
[1738775481558,0.1528497,98204.0,98203.0,0.11117553]
[1738775482325,0.1528497,98204.0,98203.0,0.00867188]
[1738775482658,0.1528497,98204.0,98203.0,0.00022407]
[1738775483284,0.2304497,98204.0,98203.0,0.00022407]
[1738775483481,0.2784497,98204.0,98203.0,0.00022407]
[1738775486223,0.2008497,98204.0,98203.0,0.00022407]
[1738775486407,0.2008497,98204.0,98203.0,0.00867188]
[1738775487243,0.1528497,98204.0,98203.0,0.00867188]
[1738775488640,0.1528497,98204.0,98203.0,0.00022407]
[1738775492675,0.15276,98193.0,98189.0,0.00844781]
[1738775492872,0.1281,98192.0,98178.0,0.00844781]
[1738775493076,0.1281,98192.0,98158.0,0.0816564]
[1738775493077,0.152777,98182.0,98172.0,0.0816564]
[1738775493274,0.385677,98182.0,98166.0,0.00844781]
[1738775493472,0.385677,98182.0,98168.0,0.00844781]
[1738775493738,0.430877,98182.0,98158.0,0.0816564]
[1738775494251,0.53338065,98182.0,98158.0,0.0816564]
[1738775494454,0.6358843,98182.0,98160.0,0.00844781]
[1738775494917,0.64652322,98182.0,98160.0,0.00844781]
[1738775495130,0.54401957,98182.0,98160.0,0.00844781]
[1738775496345,0.44151592,98182.0,98165.0,0.00844781]
[1738775499437,0.31341592,98182.0,98177.0,0.00844781]
[1738775499578,0.152777,98182.0,98181.0,0.00867188]
[1738775499783,0.203688,98189.0,98183.0,0.00844781]
[1738775499959,0.203688,98189.0,98188.0,0.00844781]
[1738775500585,0.21443168,98189.0,98188.0,0.00844781]
[1738775500817,0.152768,98188.0,98187.0,0.00844781]
[1738775501009,0.274877,98182.0,98181.0,0.00022407]
[1738775501185,0.424877,98182.0,98181.0,0.00022407]
[1738775501809,0.52738065,98182.0,98181.0,0.00022407]
[1738775504237,0.55038065,98182.0,98181.0,0.00022407]
[1738775504457,0.6528843,98182.0,98181.0,0.00022407]
[1738775508035,0.6298843,98182.0,98181.0,0.00022407]
[1738775509187,0.302788,98175.0,98152.0,0.00844781]
[1738775509526,0.40529165,98175.0,98152.0,0.00844781]
[1738775509694,0.5077953,98175.0,98152.0,0.00844781]
[1738775510499,0.5840953,98175.0,98148.0,0.0816564]
[1738775511695,0.5840953,98175.0,98174.0,2.8e-07]
[1738775512283,0.59520686,98175.0,98174.0,2.8e-07]
[1738775517326,0.15,98174.0,98148.0,0.08100668]
[1738775517595,0.152828,98149.0,98148.0,0.08113469]
[1738775517867,0.152828,98149.0,98148.0,0.00012801]
[1738775520400,0.302828,98149.0,98148.0,0.00012801]
[1738775522435,0.32184196,98149.0,98148.0,0.00012801]
[1738775522636,0.33285472,98149.0,98148.0,0.00012801]
[1738775522983,0.43523939,98149.0,98148.0,0.00012801]
[1738775523947,0.33285472,98149.0,98148.0,0.00012801]
[1738775524884,0.31384076,98149.0,98148.0,0.00012801]
[1738775526423,0.41634441,98149.0,98148.0,0.00012801]
[1738775526783,0.41634441,98149.0,98148.0,0.0003525]
[1738775527151,0.41634441,98149.0,98144.0,0.00022428]
[1738775527152,0.428335,98145.0,98144.0,7.8e-07]
[1738775527266,0.6333423,98145.0,98144.0,7.8e-07]
[1738775527671,0.152877,98118.0,98110.0,0.00844781]
[1738775527869,0.15,98138.0,98104.0,0.00022407]
[1738775528135,0.152891,98109.0,98108.0,0.00867209]
[1738775528513,0.152891,98109.0,98108.0,0.00022428]
[1738775528898,0.152891,98109.0,98108.0,0.00068918]
[1738775529157,0.3793342,98109.0,98108.0,0.00068918]
[1738775529357,0.302891,98109.0,98108.0,0.00068918]
[1738775529977,0.32190245,98109.0,98108.0,0.00068918]
[1738775531463,0.33245115,98109.0,98108.0,0.00068918]
[1738775534516,0.5122548,98109.0,98108.0,0.00068918]
[1738775534740,0.5590548,98109.0,98108.0,0.00068918]
[1738775535094,0.66155845,98109.0,98108.0,0.00068918]
[1738775535600,0.4817548,98109.0,98108.0,0.00068918]
[1738775536149,0.33245115,98109.0,98108.0,0.00068918]
[1738775537354,0.18245115,98109.0,98108.0,0.00068918]
[1738775537789,0.17190245,98109.0,98108.0,0.08633699]
[1738775538190,0.152891,98109.0,98108.0,0.08633699]
[1738775538409,0.152891,98109.0,98108.0,0.00913699]
[1738775540968,0.16352659,98111.0,98110.0,0.00844781]
[1738775541186,0.4751,98132.0,98122.0,0.00844781]
[1738775541336,0.152869,98123.0,98122.0,0.00844781]
[1738775542318,0.01057932,98132.0,98131.0,0.00844781]
[1738775542526,0.152844,98139.0,98138.0,0.00844781]
[1738775542732,0.01057824,98141.0,98138.0,0.09054781]
[1738775542863,0.203787,98142.0,98138.0,0.09054781]
[1738775542864,0.152839,98142.0,98141.0,0.00844781]
[1738775543065,0.152839,98142.0,98123.0,0.10250365]
[1738775543066,0.203779,98146.0,98136.0,0.00844781]
[1738775543267,0.203782,98144.0,98127.0,0.00844781]
[1738775543489,0.203782,98144.0,98120.0,0.0829]
[1738775543490,0.152852,98134.0,98133.0,0.00844781]
[1738775543691,0.152852,98134.0,98133.0,0.00891271]
[1738775544922,0.16382282,98134.0,98133.0,0.00891271]
[1738775545520,0.16382282,98134.0,98133.0,0.0004649]
[1738775546482,0.16382282,98134.0,98133.0,0.00891271]
[1738775546906,0.16382282,98134.0,98133.0,0.0004649]
[1738775547848,0.2209645,98134.0,98133.0,0.0004649]
[1738775548159,0.16382282,98134.0,98133.0,0.0004649]
[1738775548366,0.24052282,98134.0,98133.0,0.0004649]
[1738775550050,0.16382282,98134.0,98133.0,0.0004649]
[1738775552972,0.22499282,98134.0,98133.0,0.0004649]
[1738775553169,0.16382282,98134.0,98133.0,0.0004649]
[1738775556137,0.16382282,98134.0,98133.0,0.00891271]
[1738775556138,0.152852,98134.0,98133.0,0.00891271]
[1738775556364,0.356649,98136.0,98133.0,0.00891271]
[1738775556576,0.15285,98136.0,98135.0,0.00844781]
[1738775563313,0.152852,98134.0,98133.0,0.0004649]
[1738775563618,0.152852,98134.0,98133.0,0.00068939]
[1738775565212,0.152852,98134.0,98133.0,0.0091372]
[1738775566526,0.16341922,98140.0,98139.0,0.00844781]
[1738775570371,0.203784,98143.0,98142.0,0.00844781]
[1738775570372,0.152839,98143.0,98142.0,0.00844781]
[1738775570779,0.0001069,98144.0,98134.0,0.00844781]
[1738775570978,0.152847,98137.0,98136.0,0.00844781]
[1738775571179,0.152852,98134.0,98133.0,0.00068939]
[1738775573218,0.213992,98134.0,98133.0,0.00068939]
[1738775574211,0.47726745,98134.0,98133.0,0.00068939]
[1738775574389,0.55286745,98134.0,98133.0,0.00068939]
[1738775574603,0.60036745,98134.0,98133.0,0.00068939]
[1738775574806,0.7028711,98134.0,98133.0,0.00068939]
[1738775575477,1.0279711,98134.0,98133.0,0.00068939]
[1738775575675,1.0279711,98134.0,98108.0,0.00022428]
[1738775575676,0.152891,98109.0,98108.0,0.00022428]
[1738775576819,0.17194189,98109.0,98108.0,0.00022428]
[1738775578379,0.152891,98109.0,98108.0,0.00022428]
[1738775579136,0.25198418,98109.0,98108.0,0.00022428]
[1738775579737,0.16338108,98109.0,98108.0,0.00022428]
[1738775587895,0.22452108,98109.0,98108.0,0.00022428]
[1738775588095,0.16338108,98109.0,98108.0,0.00022428]
[1738775593215,0.22452108,98109.0,98108.0,0.00022428]
[1738775593971,0.24353571,98109.0,98108.0,0.00022428]
[1738775594385,0.39353571,98109.0,98108.0,0.00022428]
[1738775594971,0.59854301,98109.0,98108.0,0.00022428]
[1738775595148,0.67434301,98109.0,98108.0,0.00022428]
[1738775595635,0.302897,98105.0,98104.0,7e-08]
[1738775595810,0.302897,98105.0,98091.0,0.00022407]
[1738775595811,0.302906,98099.0,98098.0,0.00018414]
[1738775595956,0.59910184,98099.0,98098.0,0.00018414]
[1738775596151,0.70160549,98099.0,98098.0,0.00018414]
[1738775596965,0.72062012,98099.0,98098.0,0.00018414]
[1738775597164,0.72062012,98099.0,98098.0,0.00032364]
[1738775600111,0.72964064,98099.0,98098.0,0.00032364]
[1738775600312,0.56599699,98099.0,98098.0,0.00032364]
[1738775601712,0.89109699,98099.0,98098.0,0.00032364]
[1738775604514,0.87208236,98099.0,98098.0,0.00032364]
[1738775604865,0.87208236,98099.0,98064.0,0.00844781]
[1738775604866,0.152931,98083.0,98064.0,0.00844781]
[1738775605204,0.58053465,98083.0,98064.0,0.00844781]
[1738775605349,0.58053465,98083.0,98061.0,0.00844781]
[1738775605557,0.9155383,98083.0,98065.0,0.00844781]
[1738775605907,0.81303465,98083.0,98065.0,0.00844781]
[1738775606258,0.83205125,98083.0,98065.0,0.00844781]
[1738775606462,0.84049925,98083.0,98065.0,0.00844781]
[1738775607703,0.75799925,98083.0,98065.0,0.00844781]
[1738775608156,0.81913925,98083.0,98065.0,0.00844781]
[1738775608537,0.83955354,98083.0,98065.0,0.00844781]
[1738775608903,0.90767101,98083.0,98065.0,0.00844781]
[1738775609936,0.91843979,98083.0,98065.0,0.00844781]
[1738775610088,0.82990803,98083.0,98065.0,0.00844781]
[1738775610707,0.82990803,98083.0,98061.0,0.00844781]
[1738775610915,0.82990803,98083.0,98062.0,0.00844781]
[1738775611103,0.82990803,98083.0,98058.0,0.00844781]
[1738775611541,0.82990803,98083.0,98059.0,0.00844781]
[1738775611959,0.87890803,98083.0,98059.0,0.00844781]
[1738775612209,0.87890803,98083.0,98053.0,0.09010421]
[1738775612769,0.87890803,98083.0,98058.0,0.00844781]
[1738775613897,0.87890803,98083.0,98053.0,0.09010421]
[1738775614030,0.87890803,98083.0,98058.0,0.00844781]
[1738775614654,0.87890803,98083.0,98053.0,0.0816564]
[1738775614655,0.1719476,98083.0,98082.0,0.00867188]
[1738775615233,0.1719476,98083.0,98082.0,0.00022407]
[1738775615864,0.152931,98083.0,98082.0,0.00022407]
[1738775616076,0.21005948,98083.0,98082.0,0.00022407]
[1738775616272,0.152931,98083.0,98082.0,0.00022407]
[1738775617917,0.17194982,98083.0,98082.0,0.00022407]
[1738775621921,0.152931,98083.0,98082.0,0.00022407]
[1738775623274,0.152929,98085.0,98083.0,0.00844781]
[1738775623478,0.15292,98090.0,98089.0,0.00844781]
[1738775623877,0.152927,98086.0,98085.0,0.00844781]
[1738775624303,0.152931,98083.0,98082.0,0.00022407]
[1738775624513,0.152931,98083.0,98082.0,0.00867188]
[1738775624897,0.152931,98083.0,98082.0,0.00022407]
[1738775627132,0.152931,98083.0,98082.0,0.00867188]
[1738775628994,0.152931,98083.0,98082.0,0.00022407]
[1738775629421,0.152931,98083.0,98082.0,0.00867188]
[1738775630661,0.152931,98083.0,98082.0,0.00022407]
[1738775632004,0.152931,98083.0,98082.0,0.00867188]
[1738775632200,0.152931,98083.0,98082.0,0.00022407]
[1738775632349,0.152931,98083.0,98082.0,0.00867188]
[1738775632550,0.152931,98083.0,98082.0,0.00022407]
[1738775632962,0.152931,98083.0,98082.0,0.00867188]
[1738775633801,0.152931,98083.0,98082.0,0.00022407]
[1738775635472,0.228731,98083.0,98082.0,0.00022407]
[1738775640850,0.39237465,98083.0,98082.0,0.00022407]
[1738775643400,0.71747465,98083.0,98082.0,0.00022407]
[1738775644756,0.86747465,98083.0,98082.0,7e-08]
[1738775645024,0.441282,98076.0,98075.0,0.00018414]
[1738775645163,0.59268565,98076.0,98075.0,0.00018414]
[1738775646435,0.59423784,98076.0,98075.0,1.4e-07]
[1738775646585,0.69674149,98076.0,98075.0,1.4e-07]
[1738775649373,1.02184149,98076.0,98075.0,1.4e-07]
[1738775649789,0.152976,98054.0,98043.0,0.0816564]
[1738775650126,0.58057965,98054.0,98053.0,0.08179574]
[1738775650331,0.58057965,98054.0,98037.0,0.00022449]
[1738775650332,0.364123,98050.0,98037.0,0.00022449]
[1738775650540,0.385801,98038.0,98037.0,0.00022449]
[1738775650711,0.48830465,98038.0,98037.0,0.00022449]
[1738775651102,0.42453842,98038.0,98037.0,0.00022449]
[1738775651920,0.17203477,98038.0,98037.0,0.00022449]
[1738775652537,0.17157831,98038.0,98037.0,0.00022449]
[1738775652996,0.1818785,98038.0,98037.0,0.00022449]
[1738775653204,0.16284473,98038.0,98037.0,0.00022449]
[1738775658369,0.2403274,98038.0,98037.0,0.00022449]
[1738775659833,0.16306923,98038.0,98037.0,0.00022449]
[1738775660238,0.16306923,98038.0,98037.0,0.0086723]
[1738775660642,0.15276904,98038.0,98037.0,0.0086723]
[1738775668930,0.0002245,98038.0,98037.0,0.0086723]
[1738775669141,0.1532255,98038.0,98037.0,0.0086723]
[1738775675003,0.1532255,98038.0,98037.0,0.00022449]
[1738775675211,0.21040304,98038.0,98037.0,0.00022449]
[1738775676501,0.2294926,98038.0,98037.0,0.00022449]
[1738775677196,0.17231506,98038.0,98037.0,0.00022449]
[1738775677847,0.17231506,98038.0,98037.0,0.0086723]
[1738775678061,0.01931406,98038.0,98037.0,0.0086723]
[1738775678659,0.0002245,98038.0,98037.0,0.0086723]
[1738775679938,0.0002245,98038.0,98037.0,0.1616753]
[1738775680235,0.0002245,98038.0,98037.0,0.0086723]
[1738775680442,0.0002245,98038.0,98037.0,0.1616753]
[1738775681367,0.0002245,98038.0,98037.0,0.0086723]
[1738775681726,0.1532255,98038.0,98037.0,0.0086723]
[1738775682551,0.0002245,98038.0,98037.0,0.0086723]
[1738775684635,0.1532255,98038.0,98037.0,0.0086723]
[1738775685491,0.0002245,98038.0,98037.0,0.0086723]
[1738775685693,0.01931073,98038.0,98037.0,0.0086723]
[1738775686244,0.17231173,98038.0,98037.0,0.0086723]
[1738775686468,0.01931073,98038.0,98037.0,0.0086723]
[1738775687599,0.0002245,98038.0,98037.0,0.0086723]
[1738775689374,0.1532255,98038.0,98037.0,0.0086723]
[1738775693149,0.16372802,98038.0,98037.0,0.0086723]
[1738775694176,0.1532255,98038.0,98037.0,0.0086723]
[1738775695690,0.16375015,98038.0,98037.0,0.00022449]
[1738775696095,0.16375015,98038.0,98037.0,0.0086723]
[1738775698695,0.0002245,98038.0,98037.0,0.0086723]
[1738775698949,0.1532255,98038.0,98037.0,0.00022449]
[1738775699384,0.1532255,98038.0,98037.0,0.0086723]
[1738775699542,0.1532255,98038.0,98037.0,0.00022449]
[1738775699773,0.1532255,98038.0,98036.0,6.7e-07]
[1738775699774,0.21114,98037.0,98036.0,6.7e-07]
[1738775700014,0.21114,98037.0,98034.0,0.00022449]
[1738775700015,0.214157,98028.0,98012.0,0.00844781]
[1738775700217,0.44086065,98028.0,98012.0,0.00844781]
[1738775700746,0.59086065,98028.0,98012.0,0.00844781]
[1738775701066,0.6933643,98028.0,98003.0,0.00844781]
[1738775701283,0.7022043,98028.0,98027.0,2.8e-07]
[1738775702546,0.233245,98010.0,97999.0,0.00022449]
[1738775702757,0.233245,98010.0,98009.0,0.00069064]
[1738775703907,0.38504865,98010.0,98009.0,0.00069064]
[1738775705055,0.53504865,98010.0,98009.0,0.00069064]
[1738775705223,0.59618865,98010.0,98009.0,0.00069064]
[1738775705429,0.60672261,98010.0,98009.0,0.00069064]
[1738775706053,0.60672261,98010.0,98009.0,6.4e-07]
[1738775706274,0.491201,98000.0,97999.0,4.9e-07]
[1738775706475,0.230786,97984.0,97983.0,0.00022428]
[1738775706675,0.33328965,97984.0,97983.0,0.00022428]
[1738775707702,0.35228073,97984.0,97983.0,0.00022428]
[1738775707873,0.5996248,97984.0,97983.0,0.00022428]
[1738775708074,0.6489248,97984.0,97983.0,0.00022428]
[1738775708459,0.15,97983.0,97976.0,2.8e-07]
[1738775708727,0.382197,97977.0,97976.0,2.8e-07]
[1738775708977,0.48470065,97977.0,97976.0,2.8e-07]
[1738775709176,0.59508098,97977.0,97976.0,2.8e-07]
[1738775709381,0.153131,97955.0,97952.0,0.01666667]
[1738775709554,0.202531,97955.0,97952.0,0.01666667]
[1738775709943,0.30503465,97955.0,97954.0,0.00024605]
[1738775710150,0.45503465,97955.0,97954.0,0.00024605]
[1738775710353,0.5575383,97955.0,97954.0,0.00024605]
[1738775711137,0.45503465,97955.0,97954.0,0.00024605]
[1738775711620,0.15,97954.0,97901.0,0.1299564]
[1738775711823,0.153186,97920.0,97903.0,0.10250365]
[1738775711974,0.13988274,97940.0,97904.0,0.15]
[1738775712185,0.10250365,97939.0,97907.0,0.153205]
[1738775712500,0.13988274,97930.0,97905.0,0.10250365]
[1738775712661,0.153202,97910.0,97905.0,0.10250365]
[1738775712862,0.204257,97916.0,97905.0,0.10250365]
[1738775713142,0.204221,97933.0,97905.0,0.10250365]
[1738775713260,0.204225,97931.0,97905.0,0.10250365]
[1738775713455,0.16802524,97930.0,97902.0,0.01474289]
[1738775713704,0.13988274,97920.0,97902.0,0.01474289]
[1738775713860,0.10250365,97919.0,97902.0,0.01474289]
[1738775714065,0.153212,97903.0,97902.0,0.01474289]
[1738775715304,0.2061767,97902.0,97888.0,0.001]
[1738775715516,0.2061767,97902.0,97888.0,0.00108526]
[1738775715517,0.153234,97889.0,97888.0,0.00108526]
[1738775715690,0.25573765,97889.0,97888.0,0.00108526]
[1738775715903,0.32217272,97889.0,97888.0,0.00108526]
[1738775716253,0.27459757,97889.0,97888.0,0.00108526]
[1738775716686,0.17209392,97889.0,97888.0,0.00108526]
[1738775717292,0.1823989,97889.0,97888.0,0.00108526]
[1738775717503,0.16353898,97889.0,97888.0,0.00108526]
[1738775717908,0.26604263,97889.0,97888.0,0.00108526]
[1738775718249,0.48350819,97889.0,97888.0,0.00108526]
[1738775718376,0.40557419,97889.0,97839.0,0.0456]
[1738775718579,0.153284,97857.0,97856.0,0.0005731]
[1738775719258,0.25578765,97857.0,97856.0,0.0005731]
[1738775719846,0.27454816,97857.0,97856.0,0.0005731]
[1738775720067,0.35040768,97857.0,97856.0,0.0005731]
[1738775720427,0.27454816,97857.0,97856.0,0.0005731]
[1738775720856,0.01876051,97857.0,97856.0,0.0005731]
[1738775722011,0.01876051,97857.0,97856.0,0.10307675]
[1738775722622,0.15326,97873.0,97856.0,0.10307675]
[1738775722786,0.15326,97873.0,97861.0,0.153277]
[1738775722981,0.2859734,97887.0,97868.0,0.153266]
[1738775723226,0.2859734,97887.0,97865.0,0.204361]
[1738775723227,0.153249,97880.0,97860.0,0.13988274]
[1738775723446,0.0816564,97887.0,97860.0,0.10250365]
[1738775723620,0.153258,97874.0,97863.0,0.153274]
[1738775723819,0.0816564,97887.0,97860.0,0.10250365]
[1738775724047,0.153257,97875.0,97863.0,0.153274]
[1738775724421,0.01872553,97886.0,97863.0,0.153274]
[1738775724422,0.01872553,97886.0,97864.0,0.10250365]
[1738775724781,0.01872553,97886.0,97883.0,0.153243]
[1738775725034,0.01872553,97886.0,97874.0,0.204342]
[1738775725292,0.17196453,97886.0,97876.0,0.153254]
[1738775725501,0.01872553,97886.0,97876.0,0.10250365]
[1738775725685,0.153235,97889.0,97876.0,0.10250365]
[1738775725835,0.15324,97886.0,97876.0,0.10250365]
[1738775726037,0.153241,97885.0,97876.0,0.10250365]
[1738775726237,0.0816564,97893.0,97876.0,0.10250365]
[1738775726646,0.153239,97887.0,97876.0,0.10250365]
[1738775726863,0.204292,97899.0,97876.0,0.10250365]
[1738775727058,0.15324,97886.0,97876.0,0.25575765]
[1738775727310,0.15324,97886.0,97877.0,0.153253]
[1738775727756,0.01877496,97885.0,97878.0,0.15325]
[1738775727957,0.01877496,97885.0,97881.0,0.153247]
[1738775728140,0.01877496,97885.0,97877.0,0.204338]
[1738775728429,0.01877496,97885.0,97881.0,0.153246]
[1738775728652,0.01877496,97885.0,97879.0,0.204333]
[1738775728929,0.01877496,97885.0,97880.0,0.10250365]
[1738775729142,0.01877496,97885.0,97881.0,0.153245]
[1738775729558,0.01877496,97885.0,97880.0,0.10250365]
[1738775729748,0.01877496,97884.0,97883.0,0.153243]
[1738775730310,0.01877496,97884.0,97883.0,0.2567682]
[1738775730516,0.01877496,97884.0,97883.0,0.25574665]
[1738775730719,0.153236,97888.0,97880.0,0.153247]
[1738775730916,0.03012578,97900.0,97881.0,0.25574965]
[1738775731119,0.03012578,97900.0,97884.0,0.153242]
[1738775731319,0.03012578,97900.0,97876.0,0.000107]
[1738775731320,0.153253,97877.0,97876.0,0.000107]
[1738775731550,0.25575665,97877.0,97876.0,0.000107]
[1738775731751,0.153253,97877.0,97876.0,0.000107]
[1738775731960,0.17210479,97877.0,97876.0,0.000107]
[1738775732357,0.01885179,97877.0,97876.0,0.000107]
[1738775733285,0.153242,97884.0,97876.0,0.15336]
[1738775733499,0.153242,97884.0,97876.0,0.000107]
[1738775733895,0.204316,97888.0,97879.0,0.153249]
[1738775734211,0.03012578,97904.0,97877.0,0.153253]
[1738775734390,0.153242,97885.0,97877.0,0.153253]
[1738775734594,0.01888754,97887.0,97878.0,0.10250365]
[1738775734769,0.01888754,97887.0,97885.0,0.153239]